[Event "GrandPrix_30.05"]
[Site "Chess.com"]
[Date "2020.05.30"]
[Round "4"]
[White "Mesropov_Konstantin"]
[Black "Vnebo"]
[Result "1/2-1/2"]
[WhiteElo "2302"]
[BlackElo "2159"]
[TimeControl "600+2"]
[EndTime "9:49:09 PDT"]
[Termination "Game drawn by agreement"]

1. c4 {[%clk 0:10:01.9]} 1... e6 {[%clk 0:09:55.1]} 2. Nf3 {[%clk 0:10:01.1]}
2... d5 {[%clk 0:09:54.6]} 3. e3 {[%clk 0:10:01.4]} 3... Nf6 {[%clk 0:09:54.9]}
4. Nc3 {[%clk 0:10:01.5]} 4... c5 {[%clk 0:09:40.7]} 5. d4 {[%clk 0:09:59.4]}
5... a6 {[%clk 0:09:40.4]} 6. a3 {[%clk 0:09:55.8]} 6... dxc4 {[%clk 0:09:37]}
7. Bxc4 {[%clk 0:09:52.6]} 7... b5 {[%clk 0:09:38.3]} 8. Be2 {[%clk 0:09:34]}
8... Bb7 {[%clk 0:09:36.6]} 9. O-O {[%clk 0:09:28.9]} 9... Nbd7 {[%clk
0:09:33.6]} 10. dxc5 {[%clk 0:09:10.7]} 10... Bxc5 {[%clk 0:09:20.5]} 11. b4
{[%clk 0:09:09.3]} 11... Be7 {[%clk 0:09:18.5]} 12. Bb2 {[%clk 0:08:47.2]} 12...
O-O {[%clk 0:09:17.4]} 13. Rc1 {[%clk 0:08:46.7]} 13... Rc8 {[%clk 0:09:16.1]}
14. Qb3 {[%clk 0:08:29.7]} 14... Qb6 {[%clk 0:08:51.1]} 15. Rfd1 {[%clk
0:08:22.4]} 15... Rfd8 {[%clk 0:08:50.1]} 16. h3 {[%clk 0:08:19.1]} 16... h6
{[%clk 0:08:49.7]} 17. Nd4 {[%clk 0:07:56]} 17... Ne5 {[%clk 0:08:40.7]} 18. a4
{[%clk 0:07:29.1]} 18... bxa4 {[%clk 0:08:08.4]} 19. Nxa4 {[%clk 0:07:27.6]}
19... Qxb4 {[%clk 0:08:00.1]} 20. Qxb4 {[%clk 0:07:28.2]} 20... Bxb4 {[%clk
0:08:01.5]} 21. Nxe6 {[%clk 0:07:29.1]} 21... Rxd1+ {[%clk 0:07:08.7]} 22. Rxd1
{[%clk 0:07:20.9]} 22... Nc4 {[%clk 0:06:59.1]} 23. Bxf6 {[%clk 0:06:58.7]}
23... gxf6 {[%clk 0:06:51.4]} 24. Rd8+ {[%clk 0:06:43.1]} 24... Rxd8 {[%clk
0:06:11.3]} 25. Nxd8 {[%clk 0:06:45]} 25... Nd6 {[%clk 0:05:34.1]} 26. Nxb7
{[%clk 0:06:40]} 26... Nxb7 {[%clk 0:05:36]} 27. Bxa6 {[%clk 0:06:40.4]} 27...
Nc5 {[%clk 0:05:35.7]} 28. Nxc5 {[%clk 0:06:39.7]} 28... Bxc5 {[%clk 0:05:37.6]}
29. Kf1 {[%clk 0:06:08.9]} 29... Kf8 {[%clk 0:05:17]} 30. Ke2 {[%clk 0:06:09]}
30... Bb6 {[%clk 0:05:17.3]} 31. Kf3 {[%clk 0:06:09.5]} 31... Ba5 {[%clk
0:05:14.5]} 32. Bc4 {[%clk 0:06:03.2]} 32... Bb4 {[%clk 0:05:13.8]} 33. Ke2
{[%clk 0:04:22]} 33... Ba5 {[%clk 0:05:10.2]} 34. f4 {[%clk 0:04:20.2]} 34...
Bb4 {[%clk 0:05:05.2]} 35. Kf3 {[%clk 0:04:20.5]} 35... Bd2 {[%clk 0:05:05.5]}
36. e4 {[%clk 0:04:17]} 36... Bc1 {[%clk 0:05:02.6]} 37. Kg4 {[%clk 0:04:17.2]}
37... Kg7 {[%clk 0:05:02.2]} 38. Kf5 {[%clk 0:04:16.7]} 38... Bd2 {[%clk
0:04:57.4]} 39. Bd5 {[%clk 0:04:16]} 39... Bc1 {[%clk 0:04:57.7]} 40. Kg4 {[%clk
0:04:07.9]} 40... Bd2 {[%clk 0:04:55.9]} 41. Bc4 {[%clk 0:04:08.6]} 41... Kg6
{[%clk 0:04:51.6]} 42. g3 {[%clk 0:04:00.5]} 42... Be1 {[%clk 0:04:45.9]} 43.
Bd3 {[%clk 0:03:59.5]} 43... Kg7 {[%clk 0:04:44.7]} 44. Kf3 {[%clk 0:03:48.7]}
44... Kf8 {[%clk 0:04:32.9]} 45. Bc4 {[%clk 0:03:47.6]} 45... Kg7 {[%clk
0:04:32]} 46. g4 {[%clk 0:03:41.2]} 46... Bd2 {[%clk 0:04:30.6]} 47. h4 {[%clk
0:03:25]} 47... Be1 {[%clk 0:04:24.2]} 48. h5 {[%clk 0:03:25.7]} 48... Bd2
{[%clk 0:04:23.3]} 49. Bb3 {[%clk 0:03:22]} 49... Bc1 {[%clk 0:04:22.6]} 50. e5
{[%clk 0:02:47.8]} 50... fxe5 {[%clk 0:04:19.8]} 51. fxe5 {[%clk 0:02:48.5]}
51... f6 {[%clk 0:04:05.7]} 52. e6 {[%clk 0:02:45.1]} 52... Kf8 {[%clk
0:04:04.6]} 53. Ke4 {[%clk 0:02:43.9]} 53... Ke7 {[%clk 0:04:04.4]} 1/2-1/2

[Event "GrandPrix_30.05"]
[Site "Chess.com"]
[Date "2020.05.30"]
[Round "4"]
[White "DenLaz"]
[Black "Bengalas"]
[Result "1/2-1/2"]
[WhiteElo "2525"]
[BlackElo "2265"]
[TimeControl "600+2"]
[EndTime "9:49:14 PDT"]
[Termination "Game drawn by repetition"]

1. d4 {[%clk 0:10:01.9]} 1... Nf6 {[%clk 0:10:00.1]} 2. c4 {[%clk 0:10:03.2]}
2... e6 {[%clk 0:10:00]} 3. Nf3 {[%clk 0:10:04.4]} 3... Bb4+ {[%clk 0:09:58.3]}
4. Bd2 {[%clk 0:10:04.1]} 4... Qe7 {[%clk 0:09:58.2]} 5. g3 {[%clk 0:10:05]}
5... Bxd2+ {[%clk 0:09:57.2]} 6. Qxd2 {[%clk 0:10:04.8]} 6... Nc6 {[%clk
0:09:56.3]} 7. Nc3 {[%clk 0:10:05.3]} 7... d5 {[%clk 0:09:56.3]} 8. Bg2 {[%clk
0:09:21.1]} 8... dxc4 {[%clk 0:09:55.7]} 9. O-O {[%clk 0:09:10.2]} 9... O-O
{[%clk 0:09:54.5]} 10. Rac1 {[%clk 0:09:10.7]} 10... Rd8 {[%clk 0:09:11.9]} 11.
Rfd1 {[%clk 0:08:34]} 11... Rb8 {[%clk 0:07:11.1]} 12. Qg5 {[%clk 0:07:19.7]}
12... Nd5 {[%clk 0:05:33.3]} 13. Qh5 {[%clk 0:07:08.9]} 13... b5 {[%clk
0:04:45.3]} 14. Ne4 {[%clk 0:07:05.7]} 14... h6 {[%clk 0:04:29.5]} 15. b3 {[%clk
0:06:40.6]} 15... f5 {[%clk 0:03:32.6]} 16. Nc5 {[%clk 0:06:39.3]} 16... c3
{[%clk 0:02:10.7]} 17. e4 {[%clk 0:06:01.5]} 17... fxe4 {[%clk 0:01:13.6]} 18.
Nxe4 {[%clk 0:05:59.7]} 18... b4 {[%clk 0:01:15.1]} 19. Re1 {[%clk 0:05:54.8]}
19... Nf6 {[%clk 0:00:38.9]} 20. Qh4 {[%clk 0:05:50.4]} 20... Nxd4 {[%clk
0:00:26.5]} 21. Ne5 {[%clk 0:05:42.6]} 21... c5 {[%clk 0:00:15.5]} 22. Ng6
{[%clk 0:05:04.5]} 22... Qf7 {[%clk 0:00:15.5]} 23. Ne5 {[%clk 0:04:52]} 23...
Qe7 {[%clk 0:00:15.8]} 24. Ng6 {[%clk 0:04:08.5]} 24... Qf7 {[%clk 0:00:16.1]}
25. Ne5 {[%clk 0:04:09.9]} 25... Qe7 {[%clk 0:00:17.3]} 1/2-1/2

[Event "GrandPrix_30.05"]
[Site "Chess.com"]
[Date "2020.05.30"]
[Round "4"]
[White "Grebnev_A"]
[Black "bsnsun"]
[Result "1-0"]
[WhiteElo "2199"]
[BlackElo "1913"]
[TimeControl "600+2"]
[EndTime "9:49:27 PDT"]
[Termination "Grebnev_A won by resignation"]

1. c4 {[%clk 0:10:01.9]} 1... b6 {[%clk 0:10:00.4]} 2. Nc3 {[%clk 0:09:57.6]}
2... Bb7 {[%clk 0:10:00.9]} 3. Nf3 {[%clk 0:09:58]} 3... e6 {[%clk 0:10:00.9]}
4. e4 {[%clk 0:09:52]} 4... c5 {[%clk 0:09:57.3]} 5. d4 {[%clk 0:09:35.9]} 5...
cxd4 {[%clk 0:09:57.7]} 6. Nxd4 {[%clk 0:09:37.8]} 6... d6 {[%clk 0:09:56.6]} 7.
Be3 {[%clk 0:09:35.7]} 7... Nf6 {[%clk 0:09:57.6]} 8. Bd3 {[%clk 0:09:12.5]}
8... Nbd7 {[%clk 0:09:57]} 9. O-O {[%clk 0:09:13.5]} 9... Be7 {[%clk 0:09:56.3]}
10. Rc1 {[%clk 0:09:13.3]} 10... Rc8 {[%clk 0:09:56.6]} 11. b3 {[%clk
0:09:12.6]} 11... O-O {[%clk 0:09:53.9]} 12. Qd2 {[%clk 0:09:10.2]} 12... a6
{[%clk 0:09:53.2]} 13. Rfd1 {[%clk 0:09:10.8]} 13... Nc5 {[%clk 0:09:52.9]} 14.
f3 {[%clk 0:09:10.5]} 14... Qc7 {[%clk 0:09:52.8]} 15. Bf1 {[%clk 0:09:00.7]}
15... Rfd8 {[%clk 0:09:50.1]} 16. Qf2 {[%clk 0:08:04.9]} 16... Qb8 {[%clk
0:09:49.4]} 17. Qg3 {[%clk 0:07:57.8]} 17... Kh8 {[%clk 0:09:50.2]} 18. Nde2
{[%clk 0:06:58.6]} 18... Re8 {[%clk 0:09:15.9]} 19. Nf4 {[%clk 0:06:24.3]} 19...
Bd8 {[%clk 0:09:08.8]} 20. Nd3 {[%clk 0:05:47.9]} 20... Bc7 {[%clk 0:08:56.6]}
21. Qh4 {[%clk 0:05:33.6]} 21... Ncd7 {[%clk 0:08:52.3]} 22. Nf4 {[%clk
0:05:21.5]} 22... Ne5 {[%clk 0:08:31.1]} 23. Qf2 {[%clk 0:05:13.4]} 23... Ned7
{[%clk 0:08:27.9]} 24. Qh4 {[%clk 0:05:14.4]} 24... Rg8 {[%clk 0:08:04.6]} 25.
Nh3 {[%clk 0:04:55.7]} 25... d5 {[%clk 0:07:40]} 26. Ng5 {[%clk 0:04:40.6]}
26... Rgf8 {[%clk 0:07:29.2]} 27. exd5 {[%clk 0:04:16.4]} 27... exd5 {[%clk
0:07:19.5]} 28. Nxd5 {[%clk 0:04:16.4]} 28... Bxd5 {[%clk 0:07:18.4]} 29. cxd5
{[%clk 0:04:18.3]} 29... b5 {[%clk 0:07:08.2]} 30. Bd3 {[%clk 0:02:49.6]} 30...
h6 {[%clk 0:06:55.4]} 31. Bf5 {[%clk 0:02:47.2]} 31... Bb6 {[%clk 0:06:23.9]}
32. Nxf7+ {[%clk 0:02:10.3]} 32... Kg8 {[%clk 0:05:33.9]} 33. Nxh6+ {[%clk
0:02:05.9]} 33... gxh6 {[%clk 0:05:24.3]} 34. Be6+ {[%clk 0:02:06.4]} 34... Rf7
{[%clk 0:05:07.3]} 35. Rxc8+ {[%clk 0:02:05.8]} 35... Qxc8 {[%clk 0:05:06.6]}
36. Bxb6 {[%clk 0:01:56.7]} 36... Qc2 {[%clk 0:04:27.5]} 37. Re1 {[%clk
0:01:39.7]} 37... Nxb6 {[%clk 0:04:07.3]} 38. Qxf6 {[%clk 0:01:39]} 1-0

[Event "GrandPrix_30.05"]
[Site "Chess.com"]
[Date "2020.05.30"]
[Round "4"]
[White "haddinibilbaoo"]
[Black "am00ss00"]
[Result "0-1"]
[WhiteElo "2092"]
[BlackElo "2054"]
[TimeControl "600+2"]
[EndTime "9:49:30 PDT"]
[Termination "am00ss00 won by resignation"]

1. d4 {[%clk 0:09:58.4]} 1... d5 {[%clk 0:10:00.6]} 2. Nf3 {[%clk 0:09:58.5]}
2... e6 {[%clk 0:10:01.4]} 3. Bf4 {[%clk 0:09:59.7]} 3... Bd6 {[%clk 0:10:01.9]}
4. e3 {[%clk 0:10:01.1]} 4... f5 {[%clk 0:10:02.3]} 5. Nbd2 {[%clk 0:09:51.5]}
5... Nf6 {[%clk 0:10:02.1]} 6. Bd3 {[%clk 0:09:49.5]} 6... O-O {[%clk
0:10:02.3]} 7. O-O {[%clk 0:09:50.6]} 7... Ne4 {[%clk 0:09:59]} 8. Bxd6 {[%clk
0:09:42.7]} 8... Qxd6 {[%clk 0:09:57.5]} 9. Ne5 {[%clk 0:09:38.4]} 9... Nxd2
{[%clk 0:09:51.1]} 10. Qxd2 {[%clk 0:09:39.3]} 10... Nd7 {[%clk 0:09:52.1]} 11.
Nxd7 {[%clk 0:09:23.7]} 11... Bxd7 {[%clk 0:09:52.8]} 12. f4 {[%clk 0:09:24.8]}
12... c5 {[%clk 0:09:46.4]} 13. c3 {[%clk 0:09:25.6]} 13... c4 {[%clk
0:09:42.5]} 14. Be2 {[%clk 0:09:24.9]} 14... b5 {[%clk 0:09:42.3]} 15. Kh1
{[%clk 0:09:21.9]} 15... a5 {[%clk 0:09:37.4]} 16. Rg1 {[%clk 0:09:22.9]} 16...
b4 {[%clk 0:09:35.9]} 17. g4 {[%clk 0:09:23.6]} 17... Rab8 {[%clk 0:09:26.9]}
18. Rg3 {[%clk 0:08:51.4]} 18... Rf7 {[%clk 0:09:10]} 19. Rag1 {[%clk
0:08:43.6]} 19... a4 {[%clk 0:09:08.6]} 20. gxf5 {[%clk 0:08:30.7]} 20... exf5
{[%clk 0:09:08.3]} 21. Bh5 {[%clk 0:08:07.7]} 21... Re7 {[%clk 0:09:04.2]} 22.
Qg2 {[%clk 0:08:08.7]} 22... Qf6 {[%clk 0:08:54.6]} 23. Qxd5+ {[%clk 0:07:36.3]}
23... Kh8 {[%clk 0:07:52.9]} 24. Bf3 {[%clk 0:07:33.2]} 24... bxc3 {[%clk
0:07:42.9]} 25. bxc3 {[%clk 0:07:35.1]} 25... g6 {[%clk 0:07:08.6]} 26. Qxc4
{[%clk 0:07:15]} 26... Rxe3 {[%clk 0:07:01.7]} 27. Qc7 {[%clk 0:07:03.9]} 27...
Rd8 {[%clk 0:06:42.3]} 28. c4 {[%clk 0:05:24.4]} 28... Be8 {[%clk 0:06:12.4]}
29. Bd5 {[%clk 0:05:03]} 29... Rd7 {[%clk 0:05:56.2]} 30. Rxe3 {[%clk
0:04:05.4]} 30... Rxc7 {[%clk 0:05:48.2]} 31. Rxe8+ {[%clk 0:04:06.4]} 31... Kg7
{[%clk 0:05:47.6]} 32. Rg8+ {[%clk 0:04:07.9]} 32... Kh6 {[%clk 0:05:44.5]} 33.
Rg3 {[%clk 0:04:09.4]} 33... Qh4 {[%clk 0:04:25.4]} 34. Rf3 {[%clk 0:02:51.8]}
34... Re7 {[%clk 0:04:19.7]} 35. Rf1 {[%clk 0:02:14]} 35... Re1 {[%clk
0:03:56.6]} 36. Rxe1 {[%clk 0:02:00.7]} 36... Qxe1+ {[%clk 0:03:58.5]} 37. Kg2
{[%clk 0:02:01.6]} 37... Qd2+ {[%clk 0:03:57]} 38. Kg3 {[%clk 0:02:02.8]} 38...
Qe3+ {[%clk 0:03:37.2]} 39. Kg2 {[%clk 0:02:02.6]} 39... Qxf4 {[%clk 0:03:24.7]}
40. c5 {[%clk 0:02:01.8]} 40... Qxd4 {[%clk 0:03:20.7]} 0-1

[Event "GrandPrix_30.05"]
[Site "Chess.com"]
[Date "2020.05.30"]
[Round "4"]
[White "Misterlose0"]
[Black "BakaPG"]
[Result "0-1"]
[WhiteElo "1953"]
[BlackElo "2325"]
[TimeControl "600+2"]
[EndTime "9:49:40 PDT"]
[Termination "BakaPG won by resignation"]

1. d4 {[%clk 0:10:01.9]} 1... c5 {[%clk 0:09:57.7]} 2. d5 {[%clk 0:10:02.6]}
2... e5 {[%clk 0:09:58]} 3. e4 {[%clk 0:09:57.7]} 3... d6 {[%clk 0:09:59]} 4.
Nc3 {[%clk 0:09:20.7]} 4... Be7 {[%clk 0:09:57.1]} 5. Nf3 {[%clk 0:09:13.5]}
5... Nf6 {[%clk 0:09:55.5]} 6. Be2 {[%clk 0:09:06.8]} 6... O-O {[%clk
0:09:53.7]} 7. O-O {[%clk 0:09:07.5]} 7... Nbd7 {[%clk 0:09:53.9]} 8. Nd2 {[%clk
0:08:46.2]} 8... a6 {[%clk 0:09:51.8]} 9. a4 {[%clk 0:08:46.7]} 9... b6 {[%clk
0:09:51.5]} 10. Nc4 {[%clk 0:08:46.4]} 10... Ne8 {[%clk 0:09:51.1]} 11. f4
{[%clk 0:08:19]} 11... Bf6 {[%clk 0:09:47.8]} 12. Bg4 {[%clk 0:07:46.7]} 12...
Rb8 {[%clk 0:09:44.8]} 13. Be3 {[%clk 0:06:43]} 13... exf4 {[%clk 0:09:19.3]}
14. Bxf4 {[%clk 0:06:41.5]} 14... Bd4+ {[%clk 0:09:02.3]} 15. Kh1 {[%clk
0:06:41.3]} 15... Ne5 {[%clk 0:08:59.9]} 16. Bxc8 {[%clk 0:05:51.5]} 16... Rxc8
{[%clk 0:08:44.7]} 17. Bxe5 {[%clk 0:05:13]} 17... Bxe5 {[%clk 0:08:43.2]} 18.
Nxe5 {[%clk 0:05:00.4]} 18... dxe5 {[%clk 0:08:42.4]} 19. Qe2 {[%clk 0:05:02.3]}
19... c4 {[%clk 0:08:42]} 20. d6 {[%clk 0:04:29.8]} 20... Qxd6 {[%clk 0:08:28]}
21. Rad1 {[%clk 0:04:28]} 21... Qe6 {[%clk 0:08:05.9]} 22. Nd5 {[%clk
0:04:27.4]} 22... b5 {[%clk 0:07:59]} 23. Ne3 {[%clk 0:03:16.6]} 23... Nd6
{[%clk 0:07:51.1]} 24. Nf5 {[%clk 0:03:05.7]} 24... Nxf5 {[%clk 0:07:46.4]} 25.
exf5 {[%clk 0:03:05.8]} 25... Qf6 {[%clk 0:07:47.2]} 26. axb5 {[%clk 0:03:06.4]}
26... axb5 {[%clk 0:07:47.3]} 27. Rd5 {[%clk 0:03:08]} 27... e4 {[%clk
0:07:37.6]} 28. Qxe4 {[%clk 0:02:50.4]} 28... Qxb2 {[%clk 0:07:24.4]} 29. f6
{[%clk 0:02:48.7]} 29... Rfe8 {[%clk 0:07:25.2]} 30. Qh4 {[%clk 0:02:12.7]}
30... Re6 {[%clk 0:07:04.2]} 31. fxg7 {[%clk 0:00:48.5]} 31... Rce8 {[%clk
0:06:58.8]} 32. h3 {[%clk 0:00:28.9]} 32... Qxc2 {[%clk 0:06:41.9]} 33. Rd7
{[%clk 0:00:18.3]} 33... Rg6 {[%clk 0:06:37.9]} 34. g4 {[%clk 0:00:03.3]} 34...
Qe4+ {[%clk 0:06:31.9]} 35. Kg1 {[%clk 0:00:03.7]} 35... Rxg7 {[%clk 0:06:18.3]}
36. Qh5 {[%clk 0:00:02.2]} 36... Rf8 {[%clk 0:06:12]} 37. Qxb5 {[%clk
0:00:02.4]} 37... Qe3+ {[%clk 0:05:47.6]} 38. Kg2 {[%clk 0:00:03.1]} 38... h5
{[%clk 0:05:36.1]} 39. Qxh5 {[%clk 0:00:03.4]} 39... c3 {[%clk 0:05:32.4]} 40.
Rf3 {[%clk 0:00:02.9]} 40... Qe2+ {[%clk 0:05:31.3]} 41. Rf2 {[%clk 0:00:03.8]}
41... Qe4+ {[%clk 0:05:31.5]} 42. Kg1 {[%clk 0:00:05]} 42... c2 {[%clk
0:05:31.1]} 43. Rc7 {[%clk 0:00:02.5]} 43... Qe1+ {[%clk 0:05:29.1]} 44. Rf1
{[%clk 0:00:02.7]} 44... Qg3+ {[%clk 0:05:29.8]} 45. Kh1 {[%clk 0:00:04.6]}
45... Qxc7 {[%clk 0:05:30.3]} 0-1

[Event "GrandPrix_30.05"]
[Site "Chess.com"]
[Date "2020.05.30"]
[Round "4"]
[White "HElissalt"]
[Black "tsaruk_maks"]
[Result "0-1"]
[WhiteElo "2094"]
[BlackElo "2391"]
[TimeControl "600+2"]
[EndTime "9:49:45 PDT"]
[Termination "tsaruk_maks won by checkmate"]

1. d4 {[%clk 0:10:01.1]} 1... Nf6 {[%clk 0:10:00.3]} 2. c4 {[%clk 0:10:01.5]}
2... e6 {[%clk 0:10:01.6]} 3. Nf3 {[%clk 0:10:01.4]} 3... d5 {[%clk 0:10:01]} 4.
Nc3 {[%clk 0:09:59.3]} 4... c5 {[%clk 0:10:01.4]} 5. cxd5 {[%clk 0:09:59.3]}
5... Nxd5 {[%clk 0:10:03.3]} 6. e4 {[%clk 0:09:48.5]} 6... Nxc3 {[%clk
0:10:04.1]} 7. bxc3 {[%clk 0:09:48.7]} 7... cxd4 {[%clk 0:10:05.7]} 8. cxd4
{[%clk 0:09:49.3]} 8... Bb4+ {[%clk 0:10:07.3]} 9. Bd2 {[%clk 0:09:50.1]} 9...
Bxd2+ {[%clk 0:10:08.9]} 10. Qxd2 {[%clk 0:09:50.2]} 10... O-O {[%clk
0:10:10.6]} 11. Bc4 {[%clk 0:09:45.3]} 11... b6 {[%clk 0:10:11.2]} 12. O-O
{[%clk 0:09:45.4]} 12... Nd7 {[%clk 0:10:08.3]} 13. Rfe1 {[%clk 0:09:43.6]}
13... Bb7 {[%clk 0:10:08.6]} 14. Ng5 {[%clk 0:08:32.4]} 14... h6 {[%clk
0:09:12.3]} 15. Nh3 {[%clk 0:08:29.5]} 15... Rc8 {[%clk 0:07:49.5]} 16. Bb3
{[%clk 0:07:49.6]} 16... Qe7 {[%clk 0:07:15.1]} 17. Nf4 {[%clk 0:07:07.2]} 17...
Rfd8 {[%clk 0:07:13.8]} 18. Qe3 {[%clk 0:06:58.4]} 18... Nf6 {[%clk 0:05:29.7]}
19. f3 {[%clk 0:06:52.9]} 19... Qb4 {[%clk 0:05:13.2]} 20. Nxe6 {[%clk 0:06:29]}
20... Rc3 {[%clk 0:04:58.9]} 21. Qf4 {[%clk 0:05:55.6]} 21... fxe6 {[%clk
0:04:58.9]} 22. Bxe6+ {[%clk 0:05:55.5]} 22... Kh8 {[%clk 0:04:58.4]} 23. Rad1
{[%clk 0:05:10.8]} 23... Bc8 {[%clk 0:03:55.6]} 24. d5 {[%clk 0:04:46.3]} 24...
Rd3 {[%clk 0:02:05.5]} 25. Qc7 {[%clk 0:04:23.8]} 25... Qd4+ {[%clk 0:02:04.3]}
26. Kf1 {[%clk 0:04:21.6]} 26... Rxd1 {[%clk 0:01:23.6]} 27. Qxd8+ {[%clk
0:04:21]} 27... Kh7 {[%clk 0:01:24.3]} 28. Qxc8 {[%clk 0:04:08.1]} 28... Qd3+
{[%clk 0:01:23.8]} 29. Kf2 {[%clk 0:04:08.4]} 29... Qd4+ {[%clk 0:00:41.9]} 30.
Kf1 {[%clk 0:04:07.7]} 30... Qd3+ {[%clk 0:00:41]} 31. Kf2 {[%clk 0:04:05.6]}
31... Qd2+ {[%clk 0:00:31.3]} 32. Re2 {[%clk 0:04:04.5]} 32... Nxe4+ {[%clk
0:00:33]} 33. fxe4 {[%clk 0:03:57.2]} 33... Qf4# {[%clk 0:00:34.6]} 0-1

[Event "GrandPrix_30.05"]
[Site "Chess.com"]
[Date "2020.05.30"]
[Round "4"]
[White "Olghita64"]
[Black "GM_LOADING"]
[Result "1/2-1/2"]
[WhiteElo "2077"]
[BlackElo "2318"]
[TimeControl "600+2"]
[EndTime "9:49:57 PDT"]
[Termination "Game drawn by repetition"]

1. Nf3 {[%clk 0:09:48.1]} 1... Nf6 {[%clk 0:09:59.3]} 2. c4 {[%clk 0:09:47]}
2... e6 {[%clk 0:09:59.5]} 3. g3 {[%clk 0:09:46.5]} 3... a6 {[%clk 0:09:58.7]}
4. Bg2 {[%clk 0:09:46.1]} 4... b5 {[%clk 0:09:59.5]} 5. b3 {[%clk 0:09:47.3]}
5... c5 {[%clk 0:09:49.7]} 6. O-O {[%clk 0:09:36.2]} 6... Bb7 {[%clk 0:09:50]}
7. Nc3 {[%clk 0:09:30.6]} 7... Qb6 {[%clk 0:09:49.9]} 8. d3 {[%clk 0:09:21.2]}
8... Be7 {[%clk 0:09:42.9]} 9. Rb1 {[%clk 0:08:45]} 9... O-O {[%clk 0:09:04.9]}
10. Bb2 {[%clk 0:08:25.2]} 10... Nc6 {[%clk 0:08:55.7]} 11. Ba1 {[%clk
0:08:15.3]} 11... d6 {[%clk 0:08:43.6]} 12. e3 {[%clk 0:08:15.1]} 12... Rfe8
{[%clk 0:05:15.5]} 13. Qe2 {[%clk 0:07:51.5]} 13... d5 {[%clk 0:05:05.6]} 14.
Rfd1 {[%clk 0:07:20.5]} 14... Rad8 {[%clk 0:03:55.5]} 15. d4 {[%clk 0:05:50.2]}
15... Ne4 {[%clk 0:03:17]} 16. cxb5 {[%clk 0:04:12]} 16... Nxc3 {[%clk
0:02:56.2]} 17. Bxc3 {[%clk 0:04:12]} 17... axb5 {[%clk 0:02:25.8]} 18. dxc5
{[%clk 0:04:07.3]} 18... Bxc5 {[%clk 0:02:25.4]} 19. b4 {[%clk 0:03:46]} 19...
Bf8 {[%clk 0:02:21.7]} 20. Nd4 {[%clk 0:03:41.3]} 20... Na7 {[%clk 0:01:11.4]}
21. Nb3 {[%clk 0:03:11.4]} 21... Nc6 {[%clk 0:01:10.9]} 22. Nd4 {[%clk
0:03:10.8]} 22... Na7 {[%clk 0:00:57.2]} 23. Nb3 {[%clk 0:02:53.2]} 23... Nc6
{[%clk 0:00:45.8]} 24. Nd4 {[%clk 0:02:53.3]} 1/2-1/2

[Event "GrandPrix_30.05"]
[Site "Chess.com"]
[Date "2020.05.30"]
[Round "4"]
[White "kostasam18"]
[Black "GMStefanova"]
[Result "1/2-1/2"]
[WhiteElo "2108"]
[BlackElo "2320"]
[TimeControl "600+2"]
[EndTime "9:50:21 PDT"]
[Termination "Game drawn by repetition"]

1. e4 {[%clk 0:10:01.7]} 1... c6 {[%clk 0:09:56.7]} 2. Nc3 {[%clk 0:09:59.2]}
2... d5 {[%clk 0:09:56.9]} 3. Nf3 {[%clk 0:09:59]} 3... Bg4 {[%clk 0:09:57.2]}
4. h3 {[%clk 0:09:58.9]} 4... Bxf3 {[%clk 0:09:58]} 5. Qxf3 {[%clk 0:09:59.9]}
5... e6 {[%clk 0:09:58.5]} 6. Be2 {[%clk 0:10:00.5]} 6... Bc5 {[%clk 0:09:58]}
7. Qg3 {[%clk 0:09:10.2]} 7... Bd4 {[%clk 0:09:41.2]} 8. exd5 {[%clk 0:08:50]}
8... exd5 {[%clk 0:09:40.5]} 9. Qg4 {[%clk 0:08:45.4]} 9... Bf6 {[%clk
0:09:10.3]} 10. O-O {[%clk 0:08:33]} 10... Ne7 {[%clk 0:08:56]} 11. d4 {[%clk
0:08:32.9]} 11... O-O {[%clk 0:08:42]} 12. Nd1 {[%clk 0:08:21.2]} 12... Nd7
{[%clk 0:08:28.1]} 13. c3 {[%clk 0:08:18.7]} 13... Re8 {[%clk 0:08:05.3]} 14.
Bd3 {[%clk 0:08:17.6]} 14... Ng6 {[%clk 0:07:06.5]} 15. Ne3 {[%clk 0:07:59.8]}
15... b5 {[%clk 0:06:29.6]} 16. Nf5 {[%clk 0:07:52.1]} 16... Nb6 {[%clk
0:06:08.5]} 17. b3 {[%clk 0:07:32.8]} 17... a5 {[%clk 0:06:02.3]} 18. Bd2 {[%clk
0:07:30.2]} 18... a4 {[%clk 0:06:00.6]} 19. b4 {[%clk 0:07:08]} 19... Nc4 {[%clk
0:05:53.5]} 20. Bxc4 {[%clk 0:07:07.3]} 20... bxc4 {[%clk 0:05:47.6]} 21. Rfe1
{[%clk 0:06:57.4]} 21... Re6 {[%clk 0:05:26]} 22. Ng3 {[%clk 0:06:45.4]} 22...
Qd7 {[%clk 0:05:09]} 23. Nh5 {[%clk 0:06:01]} 23... Bh4 {[%clk 0:04:44.8]} 24.
g3 {[%clk 0:04:58]} 24... Rxe1+ {[%clk 0:04:32]} 25. Rxe1 {[%clk 0:04:59.9]}
25... Qxg4 {[%clk 0:04:32.3]} 26. hxg4 {[%clk 0:04:59.6]} 26... Be7 {[%clk
0:04:29.1]} 27. f4 {[%clk 0:04:34.7]} 27... Bd6 {[%clk 0:04:21.5]} 28. f5 {[%clk
0:04:33.5]} 28... Ne7 {[%clk 0:03:45.3]} 29. Bf4 {[%clk 0:03:32.7]} 29... Bxf4
{[%clk 0:03:43.4]} 30. gxf4 {[%clk 0:03:31.8]} 30... Kf8 {[%clk 0:03:39.9]} 31.
Nxg7 {[%clk 0:03:26.2]} 31... Ng8 {[%clk 0:03:26.3]} 32. Nh5 {[%clk 0:03:09.6]}
32... Nh6 {[%clk 0:03:25.5]} 33. Nf6 {[%clk 0:03:06.2]} 33... Kg7 {[%clk
0:03:25.6]} 34. Nh5+ {[%clk 0:01:37.8]} 34... Kf8 {[%clk 0:03:25.8]} 35. Nf6
{[%clk 0:00:58.1]} 35... Kg7 {[%clk 0:03:25.4]} 36. Nh5+ {[%clk 0:00:49.9]}
36... Kf8 {[%clk 0:03:26.2]} 1/2-1/2